[Event "*** SCC Grand Prix: Titled Tuesday Blitz"]
[Site "Chess.com"]
[Date "2020.10.06"]
[Round "2"]
[White "pedromartinez91"]
[Black "A-Fier"]
[Result "0-1"]
[WhiteElo "2521"]
[BlackElo "2787"]
[TimeControl "180+1"]
[EndTime "10:18:00 PDT"]
[Termination "A-Fier won by resignation"]

1. a3 {[%clk 0:03:00.9]} 1... g6 {[%clk 0:02:59]} 2. d4 {[%clk 0:02:59.7]} 2...
Bg7 {[%clk 0:02:58.5]} 3. Nf3 {[%clk 0:02:59.1]} 3... Nf6 {[%clk 0:02:57.3]} 4.
Nfd2 {[%clk 0:02:59.1]} 4... d5 {[%clk 0:02:56.1]} 5. g3 {[%clk 0:02:55.5]} 5...
O-O {[%clk 0:02:55.6]} 6. Bg2 {[%clk 0:02:55.3]} 6... Na6 {[%clk 0:02:51.9]} 7.
O-O {[%clk 0:02:54.2]} 7... c5 {[%clk 0:02:51.5]} 8. c3 {[%clk 0:02:53]} 8...
Bf5 {[%clk 0:02:50.8]} 9. Nf3 {[%clk 0:02:46.3]} 9... Rc8 {[%clk 0:02:48]} 10.
Be3 {[%clk 0:02:43]} 10... Ne4 {[%clk 0:02:45.7]} 11. Nbd2 {[%clk 0:02:36.6]}
11... Qb6 {[%clk 0:02:45.8]} 12. Nxe4 {[%clk 0:02:18.7]} 12... Bxe4 {[%clk
0:02:43.3]} 13. Qd2 {[%clk 0:02:09.5]} 13... e6 {[%clk 0:02:41.7]} 14. Rac1
{[%clk 0:02:04.5]} 14... c4 {[%clk 0:02:41.2]} 15. Bh3 {[%clk 0:02:00.1]} 15...
Bxf3 {[%clk 0:02:29.1]} 16. exf3 {[%clk 0:02:01]} 16... Qc6 {[%clk 0:02:26.1]}
17. Rce1 {[%clk 0:01:49]} 17... Nc7 {[%clk 0:02:24.9]} 18. Bg5 {[%clk
0:01:42.3]} 18... Rfe8 {[%clk 0:02:21.6]} 19. Re2 {[%clk 0:01:42.6]} 19... b5
{[%clk 0:02:21.3]} 20. Rfe1 {[%clk 0:01:42.8]} 20... a5 {[%clk 0:02:21.6]} 21.
Bg4 {[%clk 0:01:25.5]} 21... b4 {[%clk 0:02:20.4]} 22. axb4 {[%clk 0:01:24.5]}
22... axb4 {[%clk 0:02:21.3]} 23. h4 {[%clk 0:01:25]} 23... bxc3 {[%clk
0:02:11.8]} 24. bxc3 {[%clk 0:01:25.9]} 24... Rb8 {[%clk 0:02:12.7]} 25. h5
{[%clk 0:01:25.5]} 25... Rb3 {[%clk 0:02:12.6]} 26. h6 {[%clk 0:01:23.5]} 26...
Bh8 {[%clk 0:02:12.6]} 27. Bf4 {[%clk 0:01:19.5]} 27... Nb5 {[%clk 0:02:11.6]}
28. Rc1 {[%clk 0:01:19.6]} 28... Ra8 {[%clk 0:02:05.3]} 29. Be5 {[%clk
0:01:17.6]} 29... Bxe5 {[%clk 0:02:00.7]} 30. Rxe5 {[%clk 0:01:18.5]} 30... Qd6
{[%clk 0:01:50.2]} 31. Qf4 {[%clk 0:01:12.1]} 31... Nxc3 {[%clk 0:01:40.4]} 32.
Qf6 {[%clk 0:01:02]} 32... Qf8 {[%clk 0:01:40.2]} 33. Rxe6 {[%clk 0:00:48.5]}
33... Qxh6 {[%clk 0:01:38.6]} 34. Re7 {[%clk 0:00:24.6]} 34... Rf8 {[%clk
0:01:07.8]} 35. Ra1 {[%clk 0:00:20.4]} 35... Qg7 {[%clk 0:01:07.5]} 36. Qc6
{[%clk 0:00:16.7]} 36... Qxd4 {[%clk 0:01:00.5]} 37. Re8 {[%clk 0:00:10]} 37...
Ne2+ {[%clk 0:00:54.7]} 38. Kg2 {[%clk 0:00:09.5]} 38... Qxa1 {[%clk 0:00:52.5]}
39. Be6 {[%clk 0:00:04.4]} 39... Qg1+ {[%clk 0:00:45.4]} 40. Kh3 {[%clk
0:00:03.9]} 40... Nf4+ {[%clk 0:00:46.3]} 41. gxf4 {[%clk 0:00:03.8]} 41...
Rxf3+ {[%clk 0:00:46.7]} 42. Kh4 {[%clk 0:00:02.9]} 42... Qxf2+ {[%clk
0:00:46.8]} 43. Kg5 {[%clk 0:00:02.8]} 43... Qg3+ {[%clk 0:00:46.9]} 44. Kf6
{[%clk 0:00:02.3]} 44... Qxf4+ {[%clk 0:00:47.2]} 45. Bf5 {[%clk 0:00:02]} 45...
Qxf5+ {[%clk 0:00:47.1]} 46. Ke7 {[%clk 0:00:01.9]} 46... Re3+ {[%clk
0:00:47.6]} 47. Kd6 {[%clk 0:00:01.7]} 47... Rexe8 {[%clk 0:00:47.3]} 48. Qxe8
{[%clk 0:00:02.6]} 48... Rxe8 {[%clk 0:00:47.4]} 49. Kc7 {[%clk 0:00:02.1]} 0-1

[Event "*** SCC Grand Prix: Titled Tuesday Blitz"]
[Site "Chess.com"]
[Date "2020.10.06"]
[Round "2"]
[White "vanea_03"]
[Black "Chessdreamer2020"]
[Result "1/2-1/2"]
[WhiteElo "2682"]
[BlackElo "2439"]
[TimeControl "180+1"]
[EndTime "10:18:00 PDT"]
[Termination "Game drawn by repetition"]

1. c4 {[%clk 0:03:00.9]} 1... d6 {[%clk 0:02:59.8]} 2. d4 {[%clk 0:03:00.7]}
2... e5 {[%clk 0:02:58.9]} 3. Nf3 {[%clk 0:03:00.6]} 3... e4 {[%clk 0:02:57.8]}
4. Ng5 {[%clk 0:03:01.1]} 4... f5 {[%clk 0:02:57.3]} 5. g3 {[%clk 0:03:00.8]}
5... Be7 {[%clk 0:02:57.3]} 6. Nh3 {[%clk 0:03:00.6]} 6... Nf6 {[%clk
0:02:57.7]} 7. Bg2 {[%clk 0:03:00.5]} 7... O-O {[%clk 0:02:58.1]} 8. Nc3 {[%clk
0:03:00.6]} 8... c6 {[%clk 0:02:58.4]} 9. d5 {[%clk 0:03:00.1]} 9... Nbd7 {[%clk
0:02:52.7]} 10. O-O {[%clk 0:02:57]} 10... Ne5 {[%clk 0:02:37]} 11. b3 {[%clk
0:02:57]} 11... cxd5 {[%clk 0:02:33.4]} 12. Nxd5 {[%clk 0:02:53.6]} 12... Be6
{[%clk 0:02:19.2]} 13. Ng5 {[%clk 0:02:23.7]} 13... Bf7 {[%clk 0:01:57.5]} 14.
Nxf7 {[%clk 0:02:20.1]} 14... Rxf7 {[%clk 0:01:57.7]} 15. Bb2 {[%clk 0:02:18.3]}
15... Bf8 {[%clk 0:01:52]} 16. Nxf6+ {[%clk 0:02:12.2]} 16... Qxf6 {[%clk
0:01:45.9]} 17. Qd2 {[%clk 0:01:53]} 17... Re8 {[%clk 0:01:40.9]} 18. Rad1
{[%clk 0:01:51.8]} 18... Rd7 {[%clk 0:01:36.4]} 19. Kh1 {[%clk 0:01:44.9]} 19...
b6 {[%clk 0:01:35.8]} 20. f4 {[%clk 0:01:42.5]} 20... exf3 {[%clk 0:01:35.8]}
21. exf3 {[%clk 0:01:42.1]} 21... Qd8 {[%clk 0:01:24.5]} 22. f4 {[%clk
0:01:29.3]} 22... Ng4 {[%clk 0:01:21.1]} 23. Rfe1 {[%clk 0:01:28.4]} 23... Kh8
{[%clk 0:01:11.3]} 24. h3 {[%clk 0:01:05.4]} 24... Rxe1+ {[%clk 0:01:04.4]} 25.
Rxe1 {[%clk 0:01:05.2]} 25... Nf6 {[%clk 0:01:02.5]} 26. Qd3 {[%clk 0:01:05]}
26... Ne4 {[%clk 0:00:54.3]} 27. Bxe4 {[%clk 0:01:01.2]} 27... fxe4 {[%clk
0:00:54.7]} 28. Rxe4 {[%clk 0:00:50.4]} 28... d5 {[%clk 0:00:35.1]} 29. Rd4
{[%clk 0:00:48.8]} 29... Qe8 {[%clk 0:00:29.1]} 30. Rxd5 {[%clk 0:00:40.7]}
30... Qe1+ {[%clk 0:00:28.4]} 31. Kg2 {[%clk 0:00:40.4]} 31... Bc5 {[%clk
0:00:22.8]} 32. h4 {[%clk 0:00:18.4]} 32... Qf2+ {[%clk 0:00:21.3]} 33. Kh3
{[%clk 0:00:18.3]} 33... Rxd5 {[%clk 0:00:18.6]} 34. cxd5 {[%clk 0:00:18.6]}
34... Qxb2 {[%clk 0:00:16]} 35. d6 {[%clk 0:00:15.6]} 35... Qf6 {[%clk
0:00:16.3]} 36. d7 {[%clk 0:00:15.4]} 36... Qd8 {[%clk 0:00:16.9]} 37. h5 {[%clk
0:00:15]} 37... Be7 {[%clk 0:00:16.8]} 38. Qd5 {[%clk 0:00:15.1]} 38... Bf6
{[%clk 0:00:15.9]} 39. Qe6 {[%clk 0:00:14.9]} 39... h6 {[%clk 0:00:15.3]} 40.
Qe8+ {[%clk 0:00:13.7]} 40... Kh7 {[%clk 0:00:15.8]} 41. g4 {[%clk 0:00:13]}
41... Qe7 {[%clk 0:00:14.4]} 42. Qg6+ {[%clk 0:00:11.4]} 42... Kg8 {[%clk
0:00:13.8]} 43. Qe8+ {[%clk 0:00:11.6]} 43... Kh7 {[%clk 0:00:13.3]} 44. Qg6+
{[%clk 0:00:11.7]} 44... Kg8 {[%clk 0:00:12.5]} 45. Qe8+ {[%clk 0:00:11.8]}
45... Kh7 {[%clk 0:00:12.7]} 1/2-1/2

[Event "*** SCC Grand Prix: Titled Tuesday Blitz"]
[Site "Chess.com"]
[Date "2020.10.06"]
[Round "2"]
[White "Lagmantr"]
[Black "korkmaz16"]
[Result "1-0"]
[WhiteElo "2643"]
[BlackElo "2338"]
[TimeControl "180+1"]
[EndTime "10:18:02 PDT"]
[Termination "Lagmantr won by resignation"]

1. Nf3 {[%clk 0:03:00.9]} 1... d5 {[%clk 0:02:59.3]} 2. c4 {[%clk 0:02:55.8]}
2... c6 {[%clk 0:02:58.7]} 3. g3 {[%clk 0:02:55.4]} 3... Nf6 {[%clk 0:02:58.8]}
4. Bg2 {[%clk 0:02:55.9]} 4... g6 {[%clk 0:02:59.2]} 5. O-O {[%clk 0:02:56.5]}
5... Bg7 {[%clk 0:02:59.4]} 6. b3 {[%clk 0:02:57.2]} 6... Ne4 {[%clk 0:02:57.8]}
7. d4 {[%clk 0:02:56.8]} 7... O-O {[%clk 0:02:56.7]} 8. Bb2 {[%clk 0:02:54.2]}
8... Bf5 {[%clk 0:02:55.3]} 9. Nbd2 {[%clk 0:02:51.9]} 9... Nd7 {[%clk
0:02:53.8]} 10. Rc1 {[%clk 0:02:50.9]} 10... Nxd2 {[%clk 0:02:53.1]} 11. Qxd2
{[%clk 0:02:50.7]} 11... Be4 {[%clk 0:02:53]} 12. Rfd1 {[%clk 0:02:48.9]} 12...
Re8 {[%clk 0:02:48]} 13. Qf4 {[%clk 0:02:45.5]} 13... Qb8 {[%clk 0:02:39.5]} 14.
Ne5 {[%clk 0:02:39.2]} 14... Nxe5 {[%clk 0:02:34.6]} 15. Bxe4 {[%clk 0:02:29.4]}
15... Nxc4 {[%clk 0:02:24]} 16. bxc4 {[%clk 0:02:22.5]} 16... Qxf4 {[%clk
0:02:19.5]} 17. gxf4 {[%clk 0:02:23.4]} 17... dxe4 {[%clk 0:02:19.9]} 18. e3
{[%clk 0:02:23.9]} 18... b6 {[%clk 0:02:17.6]} 19. c5 {[%clk 0:02:23.5]} 19...
b5 {[%clk 0:02:17.5]} 20. Kf1 {[%clk 0:02:20]} 20... e6 {[%clk 0:02:17.4]} 21.
Ke2 {[%clk 0:02:19.8]} 21... a5 {[%clk 0:02:16.9]} 22. Kd2 {[%clk 0:02:19.5]}
22... f5 {[%clk 0:02:16.7]} 23. Kc2 {[%clk 0:02:19.3]} 23... Kf7 {[%clk
0:02:13.7]} 24. a3 {[%clk 0:02:19.2]} 24... Bf6 {[%clk 0:02:07.5]} 25. Bc3
{[%clk 0:02:17.5]} 25... h6 {[%clk 0:02:05.9]} 26. Rf1 {[%clk 0:02:09.4]} 26...
Rg8 {[%clk 0:02:05.5]} 27. f3 {[%clk 0:02:08.9]} 27... exf3 {[%clk 0:01:51.5]}
28. Rxf3 {[%clk 0:02:09.8]} 28... g5 {[%clk 0:01:51.2]} 29. fxg5 {[%clk
0:02:09]} 29... hxg5 {[%clk 0:01:52.1]} 30. e4 {[%clk 0:02:05.8]} 30... f4
{[%clk 0:01:42.5]} 31. h4 {[%clk 0:02:02.1]} 31... b4 {[%clk 0:01:19.1]} 32.
axb4 {[%clk 0:01:59]} 32... axb4 {[%clk 0:01:19.3]} 33. Bb2 {[%clk 0:01:59.3]}
33... b3+ {[%clk 0:01:14.9]} 34. Kb1 {[%clk 0:01:52.3]} 34... Rgb8 {[%clk
0:01:04.8]} 35. hxg5 {[%clk 0:01:51.3]} 35... Bxg5 {[%clk 0:01:05.1]} 36. Rg1
{[%clk 0:01:51.7]} 36... Rg8 {[%clk 0:01:01.4]} 37. Bc1 {[%clk 0:01:47.1]} 37...
e5 {[%clk 0:01:00.5]} 38. dxe5 {[%clk 0:01:34.6]} 38... Ke6 {[%clk 0:00:59.4]}
39. Rxb3 {[%clk 0:01:29.9]} 39... Rab8 {[%clk 0:00:57.5]} 40. Rxb8 {[%clk
0:01:24.8]} 40... Rxb8+ {[%clk 0:00:56.7]} 41. Kc2 {[%clk 0:01:25.7]} 41... Be7
{[%clk 0:00:46.5]} 42. Bxf4 {[%clk 0:01:21.8]} 42... Rb4 {[%clk 0:00:46.6]} 43.
Kd3 {[%clk 0:01:16.4]} 43... Bxc5 {[%clk 0:00:37.5]} 44. Rg6+ {[%clk 0:01:16.1]}
44... Kf7 {[%clk 0:00:37.8]} 45. Rxc6 {[%clk 0:01:15.5]} 45... Rd4+ {[%clk
0:00:38]} 46. Ke3 {[%clk 0:01:13.1]} 46... Rc4+ {[%clk 0:00:36.9]} 47. Kf3
{[%clk 0:01:12.9]} 47... Rc3+ {[%clk 0:00:37.1]} 48. Kg4 {[%clk 0:01:13.1]}
48... Bd4 {[%clk 0:00:37.5]} 49. e6+ {[%clk 0:00:58.4]} 49... Ke8 {[%clk
0:00:24.7]} 50. Rd6 {[%clk 0:00:57.7]} 50... Bf6 {[%clk 0:00:23.5]} 51. Kf5
{[%clk 0:00:56.3]} 51... Be7 {[%clk 0:00:23.6]} 52. Ra6 {[%clk 0:00:55.8]} 52...
Rc5+ {[%clk 0:00:23.7]} 53. e5 {[%clk 0:00:56.2]} 53... Rc8 {[%clk 0:00:22.1]}
54. Ra2 {[%clk 0:00:55.9]} 54... Rd8 {[%clk 0:00:19.6]} 55. Rg2 {[%clk
0:00:54.5]} 55... Rd1 {[%clk 0:00:19]} 56. Rg8+ {[%clk 0:00:53.9]} 56... Bf8
{[%clk 0:00:19.5]} 57. Bh6 {[%clk 0:00:52.5]} 57... Rf1+ {[%clk 0:00:19.7]} 58.
Ke4 {[%clk 0:00:52.6]} 58... Rf2 {[%clk 0:00:19.4]} 59. Kd5 {[%clk 0:00:51.5]}
59... Ke7 {[%clk 0:00:19.1]} 60. Bxf8+ {[%clk 0:00:51.1]} 60... Rxf8 {[%clk
0:00:19.5]} 61. Rxf8 {[%clk 0:00:51.4]} 61... Kxf8 {[%clk 0:00:20.4]} 62. Kd6
{[%clk 0:00:52]} 62... Ke8 {[%clk 0:00:20.9]} 63. e7 {[%clk 0:00:52.5]} 63...
Kf7 {[%clk 0:00:20.8]} 64. Kd7 {[%clk 0:00:53.4]} 64... Kg7 {[%clk 0:00:21.3]}
65. e8=Q {[%clk 0:00:54.1]} 65... Kh6 {[%clk 0:00:20.6]} 66. Qg8 {[%clk
0:00:53.9]} 1-0

[Event "*** SCC Grand Prix: Titled Tuesday Blitz"]
[Site "Chess.com"]
[Date "2020.10.06"]
[Round "2"]
[White "TokChess"]
[Black "ethylalcohol"]
[Result "1-0"]
[WhiteElo "2406"]
[BlackElo "2148"]
[TimeControl "180+1"]
[EndTime "10:18:03 PDT"]
[Termination "TokChess won on time"]

1. d4 {[%clk 0:03:00.9]} 1... Nf6 {[%clk 0:02:59.6]} 2. Nf3 {[%clk 0:02:58.3]}
2... g6 {[%clk 0:02:59.5]} 3. c4 {[%clk 0:02:57.7]} 3... Bg7 {[%clk 0:02:59.8]}
4. Nc3 {[%clk 0:02:57.5]} 4... d6 {[%clk 0:02:59.3]} 5. g3 {[%clk 0:02:56.9]}
5... O-O {[%clk 0:02:59]} 6. Bg2 {[%clk 0:02:57.5]} 6... c6 {[%clk 0:02:59]} 7.
O-O {[%clk 0:02:58]} 7... Nbd7 {[%clk 0:02:59.1]} 8. Qc2 {[%clk 0:02:54.7]} 8...
Qc7 {[%clk 0:02:59.1]} 9. Rd1 {[%clk 0:02:53.3]} 9... e5 {[%clk 0:02:58.4]} 10.
e4 {[%clk 0:02:53.1]} 10... Re8 {[%clk 0:02:57.9]} 11. b3 {[%clk 0:02:42.8]}
11... exd4 {[%clk 0:02:50.6]} 12. Nxd4 {[%clk 0:02:42.8]} 12... a5 {[%clk
0:02:50.2]} 13. Bb2 {[%clk 0:02:42.5]} 13... Nc5 {[%clk 0:02:49.1]} 14. Re1
{[%clk 0:02:41.1]} 14... Ne6 {[%clk 0:02:41.4]} 15. Rad1 {[%clk 0:02:37.4]}
15... Nxd4 {[%clk 0:02:32.2]} 16. Rxd4 {[%clk 0:02:37.8]} 16... Be6 {[%clk
0:02:32.5]} 17. Red1 {[%clk 0:02:36.7]} 17... Rad8 {[%clk 0:02:32.3]} 18. Qd2
{[%clk 0:02:35.9]} 18... Ng4 {[%clk 0:01:43.6]} 19. Rxd6 {[%clk 0:02:03.7]}
19... Rxd6 {[%clk 0:01:40.8]} 20. Qxd6 {[%clk 0:02:03.5]} 20... Qb6 {[%clk
0:01:35.6]} 21. Qd2 {[%clk 0:01:47.7]} 21... Bf6 {[%clk 0:01:26]} 22. h3 {[%clk
0:01:37.9]} 22... Rd8 {[%clk 0:01:09.8]} 23. Qe2 {[%clk 0:00:59]} 23... Nxf2
{[%clk 0:00:33.5]} 24. Qxf2 {[%clk 0:00:48.5]} 24... Bd4 {[%clk 0:00:18.5]} 25.
Rxd4 {[%clk 0:00:47.7]} 25... Qxd4 {[%clk 0:00:16.4]} 26. Qxd4 {[%clk
0:00:18.8]} 26... Rxd4 {[%clk 0:00:17.3]} 27. Bf1 {[%clk 0:00:11.9]} 27... Rd2
{[%clk 0:00:16.4]} 28. Ba3 {[%clk 0:00:10.7]} 28... Rc2 {[%clk 0:00:13.8]} 29.
Na4 {[%clk 0:00:10.8]} 29... Kg7 {[%clk 0:00:09.9]} 30. Bd6 {[%clk 0:00:10.6]}
30... Rxa2 {[%clk 0:00:08.6]} 31. Be5+ {[%clk 0:00:08.7]} 31... f6 {[%clk
0:00:07.1]} 32. Bd4 {[%clk 0:00:08.5]} 32... Kf7 {[%clk 0:00:06.7]} 33. Bc3
{[%clk 0:00:08]} 33... Ra3 {[%clk 0:00:05]} 34. Nc5 {[%clk 0:00:07.4]} 34... Bc8
{[%clk 0:00:03.3]} 35. Nd3 {[%clk 0:00:03]} 35... Rxb3 {[%clk 0:00:02.6]} 36.
Bxa5 {[%clk 0:00:03]} 36... Rb1 {[%clk 0:00:01.4]} 37. Bd2 {[%clk 0:00:03.2]}
1-0

[Event "*** SCC Grand Prix: Titled Tuesday Blitz"]
[Site "Chess.com"]
[Date "2020.10.06"]
[Round "2"]
[White "AsaHoffmann"]
[Black "frederiksvane"]
[Result "0-1"]
[WhiteElo "2337"]
[BlackElo "2661"]
[TimeControl "180+1"]
[EndTime "10:18:06 PDT"]
[Termination "frederiksvane won by checkmate"]

1. d4 {[%clk 0:02:57.8]} 1... Nf6 {[%clk 0:02:59.7]} 2. Bg5 {[%clk 0:02:56.6]}
2... e6 {[%clk 0:02:59.2]} 3. Nd2 {[%clk 0:02:56]} 3... d6 {[%clk 0:02:53.2]} 4.
e4 {[%clk 0:02:53.3]} 4... h6 {[%clk 0:02:52.9]} 5. Bh4 {[%clk 0:02:53]} 5...
Nbd7 {[%clk 0:02:52.6]} 6. Bd3 {[%clk 0:02:51.8]} 6... Be7 {[%clk 0:02:49.1]} 7.
Ngf3 {[%clk 0:02:46.3]} 7... O-O {[%clk 0:02:48.6]} 8. O-O {[%clk 0:02:45.4]}
8... b6 {[%clk 0:02:46.4]} 9. a4 {[%clk 0:02:43.1]} 9... a6 {[%clk 0:02:44.9]}
10. Qe2 {[%clk 0:02:42.5]} 10... Bb7 {[%clk 0:02:42.1]} 11. c3 {[%clk
0:02:41.8]} 11... Nh5 {[%clk 0:02:34.8]} 12. Bxe7 {[%clk 0:02:40.5]} 12... Qxe7
{[%clk 0:02:35.7]} 13. g3 {[%clk 0:02:40]} 13... Nhf6 {[%clk 0:02:10.3]} 14.
Rfe1 {[%clk 0:02:37.2]} 14... e5 {[%clk 0:02:10.1]} 15. Nf1 {[%clk 0:02:30.5]}
15... Rfe8 {[%clk 0:02:07.9]} 16. d5 {[%clk 0:02:29.8]} 16... g6 {[%clk
0:02:02.7]} 17. Qd2 {[%clk 0:02:23.5]} 17... Kg7 {[%clk 0:02:01.5]} 18. Ne3
{[%clk 0:02:22.1]} 18... Nc5 {[%clk 0:02:00.3]} 19. Ng2 {[%clk 0:02:18.9]} 19...
Nb3 {[%clk 0:01:58.6]} 20. Qe3 {[%clk 0:02:08.7]} 20... Nxa1 {[%clk 0:01:57.8]}
21. Rxa1 {[%clk 0:02:07.9]} 21... c6 {[%clk 0:01:48.2]} 22. c4 {[%clk 0:02:07]}
22... b5 {[%clk 0:01:37.9]} 23. dxc6 {[%clk 0:02:02.4]} 23... Bxc6 {[%clk
0:01:37.3]} 24. cxb5 {[%clk 0:02:01.6]} 24... axb5 {[%clk 0:01:37.3]} 25. a5
{[%clk 0:02:01.2]} 25... b4 {[%clk 0:01:28.5]} 26. a6 {[%clk 0:01:59.6]} 26...
Qa7 {[%clk 0:01:24.9]} 27. Qd2 {[%clk 0:01:57.2]} 27... Bxe4 {[%clk 0:01:21.1]}
28. Be2 {[%clk 0:01:47.4]} 28... Qb6 {[%clk 0:01:17.6]} 29. Ne3 {[%clk
0:01:44.6]} 29... Bxf3 {[%clk 0:01:14.4]} 30. Bxf3 {[%clk 0:01:44]} 30... Rxa6
{[%clk 0:01:15]} 31. Rxa6 {[%clk 0:01:40.9]} 31... Qxa6 {[%clk 0:01:15.9]} 32.
Qxb4 {[%clk 0:01:40.4]} 32... Rc8 {[%clk 0:01:08.6]} 33. Kg2 {[%clk 0:01:32.3]}
33... Rc1 {[%clk 0:01:04.9]} 34. g4 {[%clk 0:01:16]} 34... Rc5 {[%clk
0:00:51.2]} 35. h4 {[%clk 0:01:12.6]} 35... Qb5 {[%clk 0:00:46.6]} 36. Qd2
{[%clk 0:01:11]} 36... d5 {[%clk 0:00:36.4]} 37. g5 {[%clk 0:01:10.2]} 37...
hxg5 {[%clk 0:00:37.3]} 38. hxg5 {[%clk 0:01:09.8]} 38... Ne4 {[%clk 0:00:38]}
39. Bxe4 {[%clk 0:01:08]} 39... dxe4 {[%clk 0:00:38.9]} 40. Qd8 {[%clk 0:01:06]}
40... Qc6 {[%clk 0:00:30.5]} 41. b3 {[%clk 0:01:00]} 41... Rc3 {[%clk
0:00:29.4]} 42. Qb8 {[%clk 0:00:50.6]} 42... Qe6 {[%clk 0:00:28.6]} 43. b4
{[%clk 0:00:46.6]} 43... Qe7 {[%clk 0:00:27.1]} 44. b5 {[%clk 0:00:31.8]} 44...
Qxg5+ {[%clk 0:00:24.1]} 45. Kf1 {[%clk 0:00:31.6]} 45... Qh5 {[%clk 0:00:17.3]}
46. Ke1 {[%clk 0:00:20]} 46... Qh1+ {[%clk 0:00:15.5]} 47. Kd2 {[%clk
0:00:19.4]} 47... Qc1+ {[%clk 0:00:15.5]} 48. Ke2 {[%clk 0:00:19.3]} 48... Rc5
{[%clk 0:00:09.8]} 49. b6 {[%clk 0:00:18.8]} 49... Rb5 {[%clk 0:00:08.9]} 50. b7
{[%clk 0:00:18.1]} 50... Rb2+ {[%clk 0:00:08.9]} 51. Nc2 {[%clk 0:00:12.8]}
51... Rxc2# {[%clk 0:00:09.8]} 0-1

[Event "*** SCC Grand Prix: Titled Tuesday Blitz"]
[Site "Chess.com"]
[Date "2020.10.06"]
[Round "2"]
[White "youngKID"]
[Black "m_ezat"]
[Result "0-1"]
[WhiteElo "2788"]
[BlackElo "2553"]
[TimeControl "180+1"]
[EndTime "10:18:10 PDT"]
[Termination "m_ezat won on time"]

1. Nf3 {[%clk 0:03:00.9]} 1... Nf6 {[%clk 0:02:58.1]} 2. g3 {[%clk 0:03:00.6]}
2... g6 {[%clk 0:02:56.5]} 3. Bg2 {[%clk 0:03:00.2]} 3... Bg7 {[%clk 0:02:56.5]}
4. c4 {[%clk 0:03:00.6]} 4... O-O {[%clk 0:02:56.2]} 5. Nc3 {[%clk 0:03:00.7]}
5... c5 {[%clk 0:02:56]} 6. h4 {[%clk 0:03:00.6]} 6... h5 {[%clk 0:02:55.1]} 7.
d4 {[%clk 0:02:58.5]} 7... d6 {[%clk 0:02:54.2]} 8. O-O {[%clk 0:02:54.2]} 8...
Nc6 {[%clk 0:02:53.5]} 9. dxc5 {[%clk 0:02:49.5]} 9... dxc5 {[%clk 0:02:53.2]}
10. Be3 {[%clk 0:02:49.4]} 10... Be6 {[%clk 0:02:51.8]} 11. Qa4 {[%clk
0:02:45.4]} 11... Qa5 {[%clk 0:02:47.2]} 12. Qxa5 {[%clk 0:02:08.1]} 12... Nxa5
{[%clk 0:02:29.9]} 13. Bxc5 {[%clk 0:01:57.4]} 13... Nxc4 {[%clk 0:02:25.1]} 14.
b3 {[%clk 0:01:56]} 14... Nd6 {[%clk 0:01:46.7]} 15. Rac1 {[%clk 0:01:52.9]}
15... Rfc8 {[%clk 0:01:41.9]} 16. Bxd6 {[%clk 0:01:30.7]} 16... exd6 {[%clk
0:01:41.3]} 17. Ng5 {[%clk 0:01:22.9]} 17... d5 {[%clk 0:01:40.1]} 18. Nb5
{[%clk 0:01:14.9]} 18... Bh6 {[%clk 0:00:59.5]} 19. Nc7 {[%clk 0:00:59.2]} 19...
Rab8 {[%clk 0:00:52.8]} 20. Ncxe6 {[%clk 0:00:30.6]} 20... fxe6 {[%clk
0:00:51.8]} 21. Rxc8+ {[%clk 0:00:30.7]} 21... Rxc8 {[%clk 0:00:51.3]} 22. Nxe6
{[%clk 0:00:31.6]} 22... Rc2 {[%clk 0:00:50.7]} 23. e3 {[%clk 0:00:31.6]} 23...
Rxa2 {[%clk 0:00:50.3]} 24. Nc7 {[%clk 0:00:24.4]} 24... Rd2 {[%clk 0:00:46.9]}
25. Bf3 {[%clk 0:00:20.3]} 25... d4 {[%clk 0:00:26.9]} 26. exd4 {[%clk
0:00:17.4]} 26... Rxd4 {[%clk 0:00:26.3]} 27. Nb5 {[%clk 0:00:12.5]} 27... Rb4
{[%clk 0:00:25.9]} 28. Be2 {[%clk 0:00:08.4]} 28... Bf8 {[%clk 0:00:20.2]} 29.
Bc4+ {[%clk 0:00:06.9]} 29... Kg7 {[%clk 0:00:19.8]} 30. Nxa7 {[%clk 0:00:07.3]}
30... Ne4 {[%clk 0:00:17.6]} 31. Nb5 {[%clk 0:00:03.2]} 31... Nd2 {[%clk
0:00:16.3]} 32. Rd1 {[%clk 0:00:02.8]} 32... Nxb3 {[%clk 0:00:15.6]} 33. Bxb3
{[%clk 0:00:02.6]} 33... Rxb5 {[%clk 0:00:15]} 34. Rd7+ {[%clk 0:00:03.3]} 34...
Kh8 {[%clk 0:00:14.2]} 35. Bc2 {[%clk 0:00:03.3]} 35... Rb6 {[%clk 0:00:13.2]}
36. Rf7 {[%clk 0:00:02.7]} 36... Bc5 {[%clk 0:00:11.1]} 37. Kg2 {[%clk
0:00:01.9]} 37... Rb2 {[%clk 0:00:10.7]} 38. Rf6 {[%clk 0:00:02]} 38... Rxc2
{[%clk 0:00:10.4]} 0-1